bitfinex/quotes_SOLUSD_20220104
["timestamp","ask_amount","ask_price","bid_price","bid_amount"]
[1641267968789,9.32,168.03,167.95,3.69515361]
[1641267969389,10.6038,168.03,167.95,3.69515361]
[1641267972396,10.3438,168.03,167.95,3.69515361]
[1641267973393,9.8438,168.03,167.95,3.69515361]
[1641267973594,9.8438,168.03,167.95,4.19515361]
[1641267974597,10.3438,168.03,167.95,3.69515361]
[1641267977097,10.3438,168.03,167.95,3.43515361]
[1641267977297,10.6038,168.03,167.95,3.43515361]
[1641267977505,10.6038,168.03,167.95,3.20583361]
[1641267977698,10.6038,168.03,167.86,93.7]
[1641267977699,193.14349,168.02,167.86,93.7]
[1641267977901,8.56,168.01,167.86,93.7]
[1641267978102,2.3643818,167.99,167.86,93.7]
[1641267978300,27.18997449,167.97,167.86,93.7]
[1641267978501,8.56,167.96,167.86,93.7]
[1641267978901,9.32,167.96,167.86,93.7]
[1641267979903,18.2596,167.96,167.86,93.7]
[1641267980109,18.2596,167.96,167.81,27.04698845]
[1641267980306,23.0074,167.95,167.81,27.54698845]
[1641267980506,2.53686492,167.93,167.81,27.54698845]
[1641267980706,8.56,167.92,167.81,27.80698845]
[1641267980904,9.06,167.92,167.81,27.80698845]
[1641267981105,8.56,167.92,167.81,29.23368213]
[1641267982506,8.56,167.92,167.81,27.17979503]
[1641267989217,23.6459,167.96,167.82,8.56]
[1641267989414,23.6459,167.96,167.82,33.5154]
[1641267989613,23.7617,167.97,167.83,1.42669368]
[1641267989814,23.7617,167.97,167.83,11.75239368]
[1641267990014,23.7617,167.97,167.83,12.01239368]
[1641267990237,23.7617,167.97,167.84,1.42669368]
[1641267990440,2.76902138,167.98,167.84,1.92669368]
[1641267990641,2.76902138,167.98,167.84,2.18669368]
[1641267990839,2.76902138,167.98,167.85,1.42669368]
[1641267991038,2.76902138,167.98,167.85,1.68669368]
[1641267991240,2.76902138,167.98,167.86,1.2999]
[1641267991441,2.76902138,167.98,167.86,3.22659368]
[1641267991641,2.76902138,167.98,167.87,1.42669368]
[1641267991839,2.76902138,167.98,167.88,19.68389909]
[1641267992042,2.76902138,167.98,167.88,19.94389909]
[1641267992343,2.76902138,167.98,167.88,21.87059277]
[1641267993742,2.76902138,167.98,167.88,2.18669368]
[1641267994141,2.76902138,167.98,167.88,0.76]
[1641267994339,2.76902138,167.98,167.87,2.0844]
[1641267994543,2.76902138,167.98,167.87,1.5844]
[1641267994744,2.76902138,167.98,167.87,2.0844]
[1641267994940,2.76902138,167.98,167.88,1.42669368]
[1641267995341,2.76902138,167.98,167.88,2.18669368]
[1641267996945,2.76902138,167.98,167.89,1.42669368]
[1641267997345,2.76902138,167.98,167.89,2.18669368]
[1641267998652,30.87843303,168.01,167.9,1.42669368]
[1641267998853,30.87843303,168.01,167.9,1.92669368]
[1641267999053,30.87843303,168.01,167.9,2.18669368]
[1641267999252,30.87843303,168.01,167.91,1.42669368]
[1641267999453,33.78349318,168.01,167.91,2.18669368]
[1641268000056,33.78349318,168.01,167.91,0.76]
[1641268000455,33.78349318,168.01,167.89,2.1016]
[1641268000659,24.6694,168.0,167.89,1.6016]
[1641268000855,24.6694,168.0,167.89,3.52829368]
[1641268001156,8.56,167.99,167.89,3.26829368]
[1641268001355,8.56,167.99,167.89,0.5]
[1641268001557,23.9312,167.98,167.89,0.5]
[1641268001756,8.56,167.97,167.86,73.3704]
[1641268002456,8.56,167.97,167.86,75.05709368]
[1641268003958,8.56,167.97,167.87,1.2532]
[1641268004359,8.56,167.97,167.87,3.43989368]
[1641268004759,8.56,167.97,167.87,2.0132]
[1641268004962,8.82,167.97,167.87,2.0132]
[1641268005362,9.32,167.97,167.87,2.0132]
[1641268005764,9.32,167.97,167.87,1.7532]
[1641268005962,8.82,167.97,167.87,1.7532]
[1641268006365,9.32,167.97,167.87,1.7532]
[1641268006563,9.32,167.97,167.87,1.2532]
[1641268006766,9.32,167.97,167.87,1.7532]
[1641268006964,9.32,167.97,167.87,2.0132]
[1641268008466,9.06,167.97,167.87,2.0132]
[1641268010001,9.32,167.97,167.87,2.0132]
[1641268010501,9.06,167.97,167.87,2.0132]
[1641268011603,9.32,167.97,167.87,2.0132]
[1641268011804,9.32,167.97,167.87,0.5]
[1641268012004,2.17701788,167.95,167.87,0.5]
[1641268012204,12.07981788,167.95,167.84,1.92669368]
[1641268012407,30.96166955,167.94,167.84,1.92669368]
[1641268012608,8.56,167.93,167.84,1.92669368]
[1641268013004,8.82,167.93,167.84,1.92669368]
[1641268013205,32.2246,167.93,167.84,2.18669368]
[1641268013506,31.9646,167.93,167.84,2.18669368]
[1641268014808,31.9646,167.93,167.84,1.68669368]
[1641268015008,32.2246,167.93,167.84,0.26]
[1641268015208,32.7246,167.93,167.84,0.26]
[1641268015409,32.7246,167.93,167.83,27.5046]
[1641268016310,32.7246,167.93,167.83,0.5]
[1641268016910,32.7246,167.93,167.82,95.62669368]
[1641268017310,34.0351,167.93,167.82,95.12669368]
[1641268019013,34.0351,167.93,167.82,95.88669368]
[1641268019414,34.0351,167.93,167.82,2.18669368]
[1641268020116,34.0351,167.93,167.83,1.2729]
[1641268020521,34.0351,167.93,167.83,2.0329]
[1641268023922,33.7751,167.93,167.83,17.7702889]
[1641268024123,33.2751,167.93,167.83,24.06398258]
[1641268026128,33.2751,167.93,167.83,19.19698258]
[1641268026728,33.2751,167.93,167.83,3.45959368]
[1641268027947,33.5351,167.93,167.83,3.45959368]
[1641268028150,34.0351,167.93,167.83,2.0329]
[1641268028549,34.0351,167.93,167.83,1.7729]
[1641268029850,34.0351,167.93,167.83,2.0329]
[1641268037856,33.7751,167.93,167.83,2.0329]
[1641268038258,34.0351,167.93,167.83,2.0329]
[1641268040663,34.0351,167.93,167.83,0.76]
[1641268040863,34.0351,167.93,167.81,24.222]
[1641268041062,34.0351,167.93,167.82,1.277]
[1641268041263,34.0351,167.93,167.82,0.777]
[1641268041463,34.0351,167.93,167.82,1.537]
[1641268043768,41.17859,167.93,167.75,93.7]
[1641268043970,41.17859,167.93,167.78,0.5]
[1641268044171,1.63087067,167.91,167.78,0.5]
[1641268044371,2.67895033,167.89,167.73,1.7696]
[1641268044670,8.56,167.88,167.75,25.30328121]
[1641268044869,9.9067,167.88,167.75,25.80328121]
[1641268045070,9.9067,167.88,167.75,27.48997489]
[1641268045471,9.9067,167.88,167.76,1.2764]
[1641268045670,23.7135,167.87,167.76,24.8369]
[1641268045871,23.7135,167.87,167.76,27.02359368]
[1641268046271,47.87496446,167.87,167.76,25.5969]
[1641268047274,48.37496446,167.87,167.76,25.5969]
[1641268047870,1.2483,167.86,167.76,25.5969]
[1641268053875,1.2483,167.86,167.76,25.3369]
[1641268054374,1.5083,167.86,167.76,25.3369]
[1641268054576,1.2483,167.86,167.76,25.3369]
[1641268055182,1.2483,167.86,167.76,25.5969]
[1641268055579,1.2483,167.86,167.76,27.02359368]
[1641268060389,23.7135,167.87,167.76,27.02359368]
[1641268061187,8.56,167.91,167.76,27.02359368]
[1641268061387,10.19087067,167.96,167.77,8.56]
[1641268061604,24.6913,167.95,167.78,23.9757]
[1641268061803,24.6913,167.95,167.79,8.56]
[1641268062005,24.6913,167.95,167.8,24.8524]
[1641268062204,9.44419306,167.93,167.82,19.43224482]
[1641268062403,2.30070306,167.93,167.83,8.56]
[1641268062605,2.30070306,167.93,167.83,10.24669368]
[1641268062807,2.30070306,167.93,167.83,10.74669368]
[1641268063107,2.30070306,167.93,167.84,2.74389368]
[1641268063304,2.30070306,167.93,167.84,11.30389368]
[1641268063505,2.30070306,167.93,167.85,1.42669368]
[1641268063905,2.30070306,167.93,167.85,2.18669368]
[1641268064305,2.30070306,167.93,167.86,1.42669368]
[1641268064505,2.30070306,167.93,167.86,1.68669368]
[1641268064707,2.30070306,167.93,167.86,2.18669368]
[1641268067209,2.30070306,167.93,167.87,1.42669368]
[1641268067407,2.30070306,167.93,167.87,1.92669368]
[1641268067607,2.30070306,167.93,167.87,2.18669368]
[1641268068810,23.3449,167.95,167.87,2.18669368]
[1641268069812,1.2733,167.97,167.87,2.18669368]
[1641268070015,4.10114003,167.97,167.88,1.2872]
[1641268070515,4.10114003,167.97,167.88,2.0472]
[1641268071118,4.10114003,167.97,167.89,25.24475562]
[1641268071321,2.82784003,167.97,167.89,25.24475562]
[1641268071517,24.1015,168.0,167.89,26.00475562]
[1641268071817,24.1015,168.0,167.9,1.42669368]
[1641268072017,24.1015,168.0,167.9,1.68669368]
[1641268072217,24.1015,168.0,167.9,2.18669368]
[1641268072418,24.1015,168.0,167.91,2.78619368]
[1641268072616,26.28342611,168.0,167.91,2.78619368]
[1641268072817,26.28342611,168.0,167.92,1.42669368]
[1641268073015,2.18192611,168.0,167.92,1.42669368]
[1641268073220,2.18192611,168.0,167.92,1.92669368]
[1641268073620,2.18192611,168.0,167.93,1.42669368]
[1641268074017,2.18192611,168.0,167.93,1.92669368]
[1641268074423,2.18192611,168.0,167.93,0.5]
[1641268074821,2.18192611,168.0,167.91,1.8595]
[1641268075122,2.18192611,168.0,167.91,1.3595]
[1641268075322,2.18192611,168.0,167.92,1.42669368]
[1641268075727,2.18192611,168.0,167.92,1.92669368]
[1641268076726,2.18192611,168.0,167.93,1.42669368]
[1641268076929,2.18192611,168.0,167.93,1.92669368]
[1641268078931,47.9489,168.04,167.94,1.42669368]
[1641268079131,22.7133,168.04,167.94,1.42669368]
[1641268079334,23.2133,168.04,167.94,1.92669368]
[1641268079731,23.2133,168.04,167.95,1.42669368]
[1641268080031,3.05137867,168.03,167.95,1.92669368]
[1641268080430,3.55137867,168.03,167.96,1.42669368]
[1641268080837,3.55137867,168.03,167.96,1.92669368]
[1641268085038,3.55137867,168.03,167.96,0.5]
[1641268085239,3.05137867,168.03,167.94,1.2941]
[1641268085437,3.05137867,168.03,167.94,1.7941]
[1641268085637,3.55137867,168.03,167.94,1.7941]
[1641268086439,3.05137867,168.03,167.94,1.7941]
[1641268087942,3.55137867,168.03,167.94,1.7941]
[1641268089247,3.05137867,168.03,167.94,1.7941]
[1641268090351,22.5583,168.02,167.94,1.7941]
[1641268092456,22.5583,168.02,167.94,0.5]
[1641268092653,22.5583,168.02,167.91,77.7117]
[1641268092854,31.6183,168.02,167.91,77.7117]
[1641268093254,1.3173,168.01,167.91,79.0373]
[1641268093855,1.8173,168.01,167.91,79.0373]
[1641268094255,1.3173,168.01,167.91,79.0373]
[1641268094653,1.3173,168.01,167.91,80.46399368]
[1641268095675,1.3173,168.01,167.91,105.04089368]
[1641268101285,22.5583,168.02,167.91,105.04089368]
[1641268101679,21.3669113,168.02,167.91,105.04089368]
[1641268105681,21.3669113,168.02,167.92,8.56]
[1641268105884,21.3669113,168.02,167.92,9.06]
[1641268106183,21.3669113,168.02,167.93,1.42669368]
[1641268106483,21.3669113,168.02,167.93,1.92669368]
[1641268106682,21.3669113,168.02,167.93,26.15889368]
[1641268106881,21.3669113,168.02,167.94,1.42669368]
[1641268107283,21.3669113,168.02,167.94,1.92669368]
[1641268107684,21.3669113,168.02,167.95,1.42669368]
[1641268107884,21.3669113,168.02,167.96,22.13034408]
[1641268108285,21.3669113,168.02,167.96,22.63034408]
[1641268109384,4.37717867,168.03,167.97,1.42669368]
[1641268109587,1.3258,168.03,167.97,1.42669368]
[1641268109784,24.2674,168.06,167.97,1.92669368]
[1641268109985,25.5504,168.06,167.97,3.30259368]
[1641268110485,25.5504,168.06,167.97,27.11549368]
[1641268110683,25.5504,168.06,167.98,1.42669368]
[1641268110684,2.53180376,168.05,167.98,1.42669368]
[1641268110883,2.53180376,168.05,167.98,1.92669368]
[1641268122830,2.53180376,168.05,167.98,9.27269368]
[1641268124231,2.03180376,168.05,167.98,9.27269368]
[1641268124934,2.03180376,168.05,167.98,1.92669368]
[1641268128933,25.5504,168.06,167.98,1.92669368]
[1641268129133,25.5504,168.06,167.98,8.86569368]
[1641268129936,2.9371342,168.05,167.99,1.42669368]
[1641268130335,2.9371342,168.05,167.99,1.92669368]
[1641268131437,2.9371342,168.05,167.99,0.5]
[1641268131837,2.9371342,168.05,167.96,1.92669368]
[1641268132038,2.9371342,168.05,167.96,1.42669368]
[1641268132241,23.8175,168.04,167.97,1.42669368]
[1641268132442,23.8175,168.04,167.97,1.92669368]
[1641268132639,23.8175,168.04,167.97,2.18669368]
[1641268137849,24.3175,168.04,167.97,2.18669368]
[1641268138251,24.3175,168.04,167.97,1.92669368]
[1641268138549,31.0930894,168.03,167.97,0.5]
[1641268138750,2.72628552,168.01,167.97,0.5]
[1641268138949,2.72628552,168.01,167.94,2.18669368]
[1641268139150,2.72628552,168.01,167.94,1.68669368]
[1641268139350,2.72628552,168.01,167.94,1.92669368]
[1641268140682,2.72628552,168.01,167.94,2.18669368]
[1641268147889,24.45399452,168.06,167.94,2.18669368]
[1641268148191,24.6632,168.05,167.94,2.18669368]
[1641268148390,24.6632,168.05,167.95,1.368]
[1641268148588,24.6632,168.05,167.95,1.628]
[1641268148789,2.30805917,168.04,167.96,1.42669368]
[1641268148990,2.30805917,168.04,167.96,1.68669368]
[1641268149192,2.30805917,168.04,167.96,2.18669368]
[1641268149390,2.30805917,168.04,167.97,1.42669368]
[1641268149590,2.30805917,168.04,167.97,1.68669368]
[1641268149788,2.30805917,168.04,167.97,2.18669368]
[1641268153894,2.30805917,168.04,167.98,1.42669368]
[1641268154093,2.30805917,168.04,167.98,1.68669368]
[1641268154294,2.30805917,168.04,167.98,2.18669368]
[1641268156598,2.30805917,168.04,167.98,1.68669368]
[1641268156796,2.30805917,168.04,167.98,2.18669368]
[1641268162099,2.30805917,168.04,167.99,1.42669368]
[1641268162499,2.30805917,168.04,167.99,2.18669368]
[1641268163900,2.30805917,168.04,167.99,0.76]
[1641268164100,2.30805917,168.04,167.99,0.5]
[1641268164400,2.30805917,168.04,167.96,2.18669368]
[1641268164900,2.30805917,168.04,167.97,1.42669368]
[1641268165100,2.30805917,168.04,167.97,1.68669368]
[1641268165301,2.30805917,168.04,167.97,2.18669368]
[1641268165703,2.30805917,168.04,167.98,1.42669368]
[1641268165901,2.30805917,168.04,167.98,1.92669368]
[1641268166103,2.30805917,168.04,167.98,2.18669368]
[1641268167701,2.30805917,168.04,167.99,1.42669368]
[1641268167902,2.30805917,168.04,167.99,1.92669368]
[1641268168202,2.30805917,168.04,167.99,2.18669368]
[1641268168400,2.30805917,168.04,167.99,0.76]
[1641268168603,2.30805917,168.04,167.99,0.5]
[1641268168801,2.30805917,168.04,167.97,2.18669368]
[1641268169603,2.30805917,168.04,167.98,1.42669368]
[1641268170003,2.30805917,168.04,167.98,2.18669368]
[1641268170205,2.56805917,168.04,167.94,1.42669368]
[1641268170406,3.06805917,168.04,167.96,0.5]
[1641268170609,2.56805917,168.04,167.96,0.5]
[1641268170804,3.06805917,168.04,167.96,0.5]
[1641268171006,26.1092,168.03,167.92,3.27609368]
[1641268171408,26.3692,168.03,167.92,3.27609368]
[1641268171611,26.3692,168.03,167.92,3.53609368]
[1641268171909,26.3692,168.03,167.93,24.9174]
[1641268172107,26.3692,168.03,167.93,25.1774]
[1641268172307,26.3692,168.03,167.93,27.10409368]
[1641268174034,26.8692,168.03,167.93,27.10409368]
[1641268174834,26.3692,168.03,167.93,27.10409368]
[1641268178438,26.3692,168.03,167.94,1.362]
[1641268178939,26.3692,168.03,167.94,2.122]
[1641268179539,26.3692,168.03,167.94,3.54869368]
[1641268179739,26.1092,168.03,167.94,18.89455165]
[1641268181540,2.30805917,168.04,167.94,23.92555165]
[1641268182141,2.30805917,168.04,167.95,24.8095]
[1641268182343,2.30805917,168.04,167.95,25.3095]
[1641268182640,2.30805917,168.04,167.96,1.42669368]
[1641268182840,2.30805917,168.04,167.96,1.92669368]
[1641268183041,2.30805917,168.04,167.96,2.18669368]
[1641268183241,2.30805917,168.04,167.97,1.42669368]
[1641268183440,2.30805917,168.04,167.97,1.92669368]
[1641268183641,2.30805917,168.04,167.97,2.18669368]
[1641268183844,2.30805917,168.04,167.98,1.42669368]
[1641268184049,2.30805917,168.04,167.98,1.68669368]
[1641268184245,2.30805917,168.04,167.98,2.18669368]
[1641268184444,2.30805917,168.04,167.99,1.42669368]
[1641268184845,2.30805917,168.04,167.99,2.18669368]
[1641268185646,2.30805917,168.04,167.99,0.76]
[1641268185844,2.30805917,168.04,167.99,0.26]
[1641268186043,2.30805917,168.04,167.96,3.52039368]
[1641268186643,2.30805917,168.04,167.96,3.26039368]
[1641268186847,2.30805917,168.04,167.96,0.5]
[1641268187245,2.30805917,168.04,167.95,25.3095]
[1641268187646,3.58015917,168.04,167.95,25.3095]
[1641268188048,3.58015917,168.04,167.95,25.5695]
[1641268188249,22.6462,168.03,167.96,1.2557]
[1641268188448,22.6462,168.03,167.96,1.7557]
[1641268188648,22.6462,168.03,167.96,2.0157]
[1641268196057,22.6462,168.03,167.96,8.93939368]
[1641268197363,22.6462,168.03,167.96,8.67939368]
[1641268197562,22.6462,168.03,167.96,0.5]
[1641268197763,22.9062,168.03,167.96,0.5]
[1641268197964,22.9062,168.03,167.95,25.3095]
[1641268198164,22.6462,168.03,167.95,25.3095]
[1641268198866,22.6462,168.03,167.95,25.5695]
[1641268205474,22.6462,168.03,167.95,26.99619368]
[1641268205876,22.6462,168.03,167.95,25.5695]
[1641268209502,22.6462,168.03,167.96,1.42669368]
[1641268209899,22.6462,168.03,167.96,10.74669368]
[1641268210499,24.96895119,168.03,167.96,10.74669368]
[1641268210699,24.96895119,168.03,167.97,1.42669368]
[1641268210700,2.32275119,168.03,167.97,1.42669368]
[1641268210899,2.32275119,168.03,167.97,1.92669368]
[1641268211098,2.32275119,168.03,167.97,0.76]
[1641268211499,2.32275119,168.03,167.96,10.6228]
[1641268212704,2.32275119,168.03,167.96,12.04949368]
[1641268214601,2.32275119,168.03,167.96,10.3628]
[1641268215812,2.32275119,168.03,167.96,11.78949368]
[1641268216012,2.32275119,168.03,167.96,12.04949368]
[1641268216212,2.32275119,168.03,167.96,10.6228]
[1641268217916,2.32275119,168.03,167.96,2.0628]
[1641268220617,2.32275119,168.03,167.96,1.8028]
[1641268222920,2.32275119,168.03,167.96,2.0628]
[1641268224823,2.32275119,168.03,167.96,3.48949368]
[1641268226622,2.32275119,168.03,167.96,3.22949368]
[1641268226824,2.32275119,168.03,167.96,1.92669368]
[1641268227022,2.32275119,168.03,167.96,0.5]
[1641268227425,2.32275119,168.03,167.96,1.2756]
[1641268227830,2.32275119,168.03,167.96,1.7756]
[1641268228027,2.32275119,168.03,167.96,2.0356]
[1641268228626,2.32275119,168.03,167.96,1.7756]
[1641268229826,1.3439,168.06,167.96,1.7756]
[1641268230025,1.3439,168.06,167.97,1.42669368]
[1641268230326,1.3439,168.06,167.97,1.92669368]
[1641268230530,1.3439,168.06,167.97,2.18669368]
[1641268230726,1.3439,168.06,167.98,1.42669368]
[1641268230927,2.26647869,168.05,167.98,1.92669368]
[1641268231128,2.26647869,168.05,167.98,2.18669368]
[1641268231328,2.26647869,168.05,167.99,1.42669368]
[1641268231529,2.26647869,168.05,167.99,1.68669368]
[1641268231729,2.26647869,168.05,167.99,2.18669368]
[1641268233931,2.26647869,168.05,168.0,1.42669368]
[1641268234332,2.26647869,168.05,168.0,2.18669368]
[1641268238649,2.26647869,168.05,167.96,77.91429368]
[1641268238851,2.26647869,168.05,167.96,76.4876]
[1641268239046,2.26647869,168.05,167.94,1.3376]
[1641268239746,1.2882,168.04,167.94,1.8376]
[1641268239946,1.2882,168.04,167.94,2.0976]
[1641268240951,1.5482,168.04,167.94,1.8376]
[1641268241451,1.2882,168.04,167.94,1.8376]
[1641268242374,1.2882,168.04,167.94,2.0976]
[1641268243373,1.2882,168.04,167.94,10.6576]
[1641268243676,1.2882,168.04,167.95,25.01489368]
[1641268243873,1.2882,168.04,167.95,25.51489368]
[1641268244074,1.2882,168.04,167.95,25.77489368]
[1641268244475,1.2882,168.04,167.95,24.3482]
[1641268244676,1.2882,168.04,167.96,1.3586]
[1641268244877,1.2882,168.04,167.96,1.8586]
[1641268245075,1.2882,168.04,167.96,2.1186]
[1641268250081,1.2882,168.04,167.96,21.17505564]
[1641268250281,1.2882,168.04,167.97,22.5988]
[1641268250482,1.2882,168.04,167.97,22.8588]
[1641268250683,1.2882,168.04,167.97,23.3588]
[1641268250883,24.2515,168.07,167.97,24.78549368]
[1641268250884,22.9124,168.07,167.97,24.78549368]
[1641268251485,22.9124,168.07,167.98,1.3563]
[1641268251787,53.38809434,168.07,167.98,1.3563]
[1641268251981,53.38809434,168.07,167.98,2.1163]
[1641268252813,54.70199434,168.07,167.98,2.1163]
[1641268252986,54.70199434,168.07,167.99,1.42669368]
[1641268253485,54.70199434,168.07,167.99,2.18669368]
[1641268256286,24.2263,168.07,168.0,1.42669368]
[1641268256487,24.2263,168.07,168.0,1.68669368]
[1641268256692,24.2263,168.07,168.0,2.18669368]
[1641268259699,24.2263,168.07,168.01,1.42669368]
[1641268259902,24.2263,168.07,168.01,1.92669368]
[1641268260099,24.2263,168.07,168.01,0.76]
[1641268260526,24.2263,168.07,167.98,3.54299368]
[1641268268431,24.2263,168.07,167.98,3.28299368]
[1641268269729,24.2263,168.07,167.98,3.54299368]
[1641268277736,24.2263,168.07,167.98,3.28299368]
[1641268277934,24.2263,168.07,167.98,1.92669368]
[1641268278135,24.4863,168.07,167.98,0.5]
[1641268278335,24.9863,168.07,167.96,0.5]
[1641268278536,8.56,168.06,167.94,1.42669368]
[1641268278734,22.81,168.05,167.94,1.92669368]
[1641268279037,23.57,168.05,167.94,1.92669368]
[1641268279537,1.2844,168.04,167.94,1.92669368]
[1641268279735,31.51482252,168.03,167.94,1.92669368]
[1641268280140,31.77482252,168.03,167.94,2.18669368]
[1641268280337,2.15659074,168.02,167.94,2.18669368]
[1641268280539,26.60759074,168.02,167.94,2.18669368]
[1641268282739,26.34759074,168.02,167.95,1.42669368]
[1641268282939,26.34759074,168.02,167.95,1.92669368]
[1641268283146,26.34759074,168.02,167.95,2.18669368]
[1641268283341,26.34759074,168.02,167.96,1.42669368]
[1641268283542,26.34759074,168.02,167.96,1.68669368]
[1641268283741,26.34759074,168.02,167.96,2.18669368]
[1641268283940,26.34759074,168.02,167.97,1.42669368]
[1641268284340,26.34759074,168.02,167.97,2.18669368]
[1641268285442,26.34759074,168.02,167.97,0.26]
[1641268285841,26.34759074,168.02,167.94,1.68669368]
[1641268286343,26.34759074,168.02,167.94,2.18669368]
[1641268288544,26.34759074,168.02,167.94,1.68669368]
[1641268289945,26.34759074,168.02,167.94,2.18669368]
[1641268299485,26.34759074,168.02,167.92,78.253]
[1641268299486,27.10759074,168.02,167.91,1.42669368]
[1641268299685,27.10759074,168.02,167.89,93.7]
[1641268300287,26.84759074,168.02,167.89,95.0326]
[1641268300488,27.10759074,168.02,167.89,95.0326]
[1641268300685,27.10759074,168.02,167.89,95.5326]
[1641268300884,26.60759074,168.02,167.89,174.654]
[1641268301088,26.60759074,168.02,167.89,174.914]
[1641268301587,26.34759074,168.02,167.9,24.0713]
[1641268301886,26.34759074,168.02,167.9,24.5713]
[1641268302086,26.34759074,168.02,167.9,24.8313]
[1641268302288,26.84759074,168.02,167.9,24.8313]
[1641268302990,26.34759074,168.02,167.9,24.8313]
[1641268303391,26.34759074,168.02,167.91,1.3029]
[1641268303589,26.34759074,168.02,167.91,1.5629]
[1641268303789,26.34759074,168.02,167.91,2.0629]
[1641268304592,26.84759074,168.02,167.91,2.0629]
[1641268304791,26.34759074,168.02,167.91,2.0629]
[1641268306593,27.10759074,168.02,167.91,2.0629]
[1641268306793,26.60759074,168.02,167.91,2.0629]
[1641268307894,27.10759074,168.02,167.91,2.0629]
[1641268308995,26.60759074,168.02,167.91,2.0629]
[1641268309194,26.34759074,168.02,167.91,2.0629]
[1641268311198,24.191,168.02,167.91,2.0629]
[1641268311596,24.191,168.02,167.91,3.48959368]
[1641268312498,24.191,168.02,167.92,24.8329]
[1641268312898,24.191,168.02,167.92,25.5929]
[1641268313097,22.9035,168.02,167.92,25.5929]
[1641268313599,22.9035,168.02,167.93,1.2767]
[1641268313998,22.9035,168.02,167.93,2.0367]
[1641268314799,2.8735787,168.03,167.93,2.0367]
[1641268315803,2.8735787,168.03,167.94,1.42669368]
[1641268316006,2.8735787,168.03,167.95,16.18970475]
[1641268316204,25.0565,168.07,167.95,16.18970475]
[1641268316401,25.0565,168.07,167.96,26.84219368]
[1641268316602,25.0565,168.07,167.96,27.10219368]
[1641268316801,25.0565,168.07,167.97,1.42669368]
[1641268317002,25.0565,168.07,167.97,1.68669368]
[1641268317205,2.61265774,168.06,167.97,2.18669368]
[1641268317402,2.61265774,168.06,167.98,1.42669368]
[1641268317602,2.61265774,168.06,167.98,1.68669368]
[1641268317802,2.61265774,168.06,167.98,2.18669368]
[1641268318003,2.61265774,168.06,167.99,1.42669368]
[1641268318403,2.61265774,168.06,167.99,2.18669368]
[1641268319203,2.61265774,168.06,168.0,1.42669368]
[1641268319403,2.61265774,168.06,168.0,1.92669368]
[1641268319603,2.61265774,168.06,168.0,2.18669368]
[1641268325709,2.61265774,168.06,168.01,1.42669368]
[1641268325909,2.61265774,168.06,168.01,2.18669368]
[1641268332639,2.61265774,168.06,168.01,1.92669368]
[1641268332840,2.61265774,168.06,167.97,2.70559368]
[1641268333039,2.61265774,168.06,167.97,3.20559368]
[1641268333637,3.92445774,168.06,167.97,3.20559368]
[1641268334038,3.92445774,168.06,167.97,3.46559368]
[1641268334241,23.00931641,168.04,167.97,3.46559368]
[1641268336150,24.1041,168.05,167.97,3.46559368]
[1641268336648,1.63087067,168.09,167.97,3.46559368]
[1641268336854,1.63087067,168.09,167.98,22.9927]
[1641268337048,31.7577,168.1,167.98,23.2527]
[1641268337249,23.1977,168.1,167.99,16.29663922]
[1641268337448,2.37788739,168.09,168.0,24.0659]
[1641268337648,2.37788739,168.09,168.01,1.2549]
[1641268337849,2.37788739,168.09,168.01,1.7549]
[1641268338048,2.37788739,168.09,168.01,2.0149]
[1641268341554,2.37788739,168.09,168.01,3.44159368]
[1641268344259,2.37788739,168.09,168.01,3.18159368]
[1641268345958,2.37788739,168.09,168.01,3.44159368]
[1641268347561,2.37788739,168.09,168.01,2.0149]
[1641268348060,2.37788739,168.09,168.01,0.76]
[1641268348462,2.37788739,168.09,167.99,2.0518]
[1641268348660,2.37788739,168.09,167.99,1.5518]
[1641268348861,2.37788739,168.09,167.99,3.47849368]
[1641268349062,2.37788739,168.09,167.99,2.0518]
[1641268350162,1.2905,168.08,167.99,2.0518]
[1641268355177,2.37788739,168.09,167.99,2.0518]
[1641268361703,1.3003,168.08,167.99,2.0518]
[1641268362103,2.37788739,168.09,167.99,2.0518]
[1641268364104,25.1635,168.1,167.99,2.0518]
[1641268365308,27.87271287,168.1,167.99,2.0518]
[1641268367011,27.87271287,168.1,168.0,1.42669368]